bitfinex-derivatives/quotes_BTCF0:USTF0_20241208
["timestamp","ask_amount","ask_price","bid_price","bid_amount"]
[1733658520965,0.045034,99856.0,99855.0,0.01830221]
[1733658521459,0.045034,99856.0,99855.0,0.19533778]
[1733658521956,0.046034,99856.0,99855.0,0.19533778]
[1733658522349,0.046034,99856.0,99855.0,0.01830221]
[1733658522767,0.046034,99856.0,99855.0,0.02456145]
[1733658524261,0.046034,99856.0,99855.0,0.01448745]
[1733658524656,0.047034,99856.0,99855.0,0.01448745]
[1733658525164,0.045034,99856.0,99855.0,0.01448745]
[1733658525355,0.047034,99856.0,99855.0,0.01448745]
[1733658525752,0.13705072,99856.0,99855.0,0.01448745]
[1733658525957,0.047034,99856.0,99855.0,0.01448745]
[1733658526161,0.047034,99856.0,99855.0,0.01448841]
[1733658526352,0.047034,99856.0,99855.0,0.00822875]
[1733658526859,0.045034,99856.0,99855.0,0.00822875]
[1733658527066,0.19664352,99856.0,99845.0,0.00150226]
[1733658527259,0.045039,99846.0,99845.0,0.00150226]
[1733658527464,0.045039,99846.0,99845.0,0.00776265]
[1733658527659,0.076539,99846.0,99845.0,0.00776265]
[1733658527854,0.076539,99846.0,99845.0,0.00150226]
[1733658528252,0.19656071,99846.0,99845.0,0.00150226]
[1733658528456,0.076539,99846.0,99845.0,0.00150226]
[1733658530360,0.107139,99846.0,99845.0,0.00150226]
[1733658530861,0.045045,99832.0,99831.0,0.00011922]
[1733658531063,0.045045,99832.0,99831.0,0.0063802]
[1733658532161,0.045045,99832.0,99831.0,0.0093802]
[1733658532367,0.045045,99832.0,99831.0,0.00311922]
[1733658533259,0.045045,99832.0,99831.0,0.00811922]
[1733658534360,0.045045,99832.0,99831.0,0.01814118]
[1733658534570,0.04516734,99832.0,99831.0,0.00811922]
[1733658538269,0.04516734,99832.0,99831.0,0.00711922]
[1733658539283,0.04516734,99832.0,99815.0,0.01]
[1733658539458,0.04516734,99832.0,99816.0,0.00313097]
[1733658539459,0.045049,99825.0,99816.0,0.00313097]
[1733658539664,0.3608,99826.0,99817.0,0.00313097]
[1733658539665,0.045049,99823.0,99817.0,0.00313097]
[1733658539863,0.045049,99823.0,99818.0,0.00313097]
[1733658540059,0.045049,99823.0,99811.0,0.3608]
[1733658540060,0.0319,99824.0,99819.0,0.00313097]
[1733658540264,0.04505,99821.0,99820.0,0.00313102]
[1733658541769,0.045051,99820.0,99819.0,0.014]
[1733658542085,0.045051,99820.0,99819.0,0.01713123]
[1733658542465,0.075451,99820.0,99819.0,0.01713123]
[1733658542661,0.075451,99820.0,99819.0,0.00813123]
[1733658543269,0.075451,99820.0,99819.0,0.00313123]
[1733658543460,0.075451,99820.0,99819.0,0.00813123]
[1733658544570,0.075451,99820.0,99819.0,0.01113123]
[1733658545664,0.075451,99820.0,99819.0,0.008]
[1733658546878,0.075451,99820.0,99810.0,8.585e-05]
[1733658546879,0.045055,99811.0,99810.0,8.585e-05]
[1733658547073,0.405855,99811.0,99810.0,0.00321736]
[1733658547375,0.405855,99811.0,99810.0,8.585e-05]
[1733658547569,0.405855,99811.0,99810.0,0.00321747]
[1733658547769,0.405855,99811.0,99810.0,8.585e-05]
[1733658549175,0.406855,99811.0,99810.0,0.00908585]
[1733658549382,0.406855,99811.0,99810.0,0.01308585]
[1733658549588,0.405855,99811.0,99810.0,0.00408585]
[1733658549779,0.405855,99811.0,99810.0,0.00908585]
[1733658550171,0.405855,99811.0,99810.0,1e-08]
[1733658550470,0.045063,99793.0,99792.0,0.01]
[1733658550668,0.045068,99781.0,99776.0,0.0328]
[1733658550874,0.0662,99792.0,99780.0,0.01978781]
[1733658551077,0.0662,99792.0,99783.0,7.844e-05]
[1733658551267,0.0662,99792.0,99784.0,0.00814328]
[1733658551579,0.405866,99785.0,99783.0,7.844e-05]
[1733658551882,0.405866,99785.0,99784.0,0.0031322]
[1733658553382,0.406866,99785.0,99784.0,0.0131322]
[1733658554176,0.046066,99785.0,99784.0,0.0131322]
[1733658554480,0.001,99785.0,99784.0,0.1185076]
[1733658555181,0.045062,99795.0,99786.0,0.045066]
[1733658555384,0.005,99805.0,99787.0,0.0144076]
[1733658555680,0.005,99805.0,99786.0,0.045066]
[1733658555681,0.045063,99792.0,99788.0,0.0144076]
[1733658555882,0.045063,99792.0,99789.0,0.0144076]
[1733658556069,0.3608,99806.0,99790.0,0.0144076]
[1733658556268,0.045064,99791.0,99786.0,0.04837569]
[1733658556476,0.045064,99791.0,99787.0,0.01440559]
[1733658556675,0.045064,99790.0,99788.0,0.01440559]
[1733658556867,0.045064,99790.0,99789.0,0.01440559]
[1733658557073,0.045064,99790.0,99789.0,0.01940559]
[1733658558581,0.045064,99790.0,99789.0,0.01440559]
[1733658559176,0.045064,99790.0,99789.0,0.01540559]
[1733658560586,0.045064,99790.0,99789.0,0.01571528]
[1733658562086,0.045064,99790.0,99789.0,0.01540559]
[1733658568191,0.045064,99790.0,99789.0,0.01540648]
[1733658570378,0.045064,99790.0,99789.0,0.00914279]
[1733658571485,0.045064,99790.0,99789.0,0.00413184]
[1733658571682,0.045067,99784.0,99783.0,7.844e-05]
[1733658571885,0.40596937,99784.0,99783.0,0.00509046]
[1733658572489,0.40596937,99784.0,99777.0,0.17795001]
[1733658572994,0.40596937,99784.0,99772.0,0.17795001]
[1733658573181,0.045072,99772.0,99771.0,0.17795001]
[1733658573488,0.045072,99772.0,99771.0,0.18421511]
[1733658573692,0.045072,99772.0,99771.0,0.0062651]
[1733658575097,0.3608,99774.0,99768.0,0.17795001]
[1733658575288,0.045073,99769.0,99768.0,0.17795001]
[1733658575492,0.045073,99769.0,99768.0,0.18421517]
[1733658576199,0.045073,99769.0,99768.0,0.00626516]
[1733658576497,0.045073,99769.0,99768.0,0.01026516]
[1733658577597,0.046073,99769.0,99768.0,0.01926516]
[1733658577901,0.046073,99769.0,99768.0,0.19318543]
[1733658578100,0.045073,99769.0,99768.0,0.18618543]
[1733658578290,0.046073,99769.0,99768.0,0.19118543]
[1733658578793,0.046073,99769.0,99768.0,0.01326516]
[1733658578987,0.046073,99769.0,99768.0,0.1911639]
[1733658579191,0.046073,99769.0,99768.0,0.01326516]
[1733658581195,0.046073,99769.0,99768.0,0.007]
[1733658582593,0.046073,99769.0,99768.0,0.01201254]
[1733658583804,0.406873,99769.0,99768.0,0.01514538]
[1733658584205,0.406873,99769.0,99768.0,0.007]
[1733658585095,0.406873,99769.0,99768.0,0.01514538]
[1733658586100,0.406873,99769.0,99768.0,0.01013285]
[1733658587599,0.046073,99769.0,99768.0,0.01013285]
[1733658587796,0.406873,99769.0,99768.0,0.01013285]
[1733658593201,0.406873,99769.0,99768.0,0.007]
[1733658596908,0.52661396,99769.0,99768.0,0.007]
[1733658597111,0.406873,99769.0,99768.0,0.007]
[1733658597303,0.52661396,99769.0,99768.0,0.007]
[1733658597506,0.406873,99769.0,99768.0,0.007]
[1733658598911,0.045078,99758.0,99757.0,8.878e-05]
[1733658599103,0.045078,99758.0,99757.0,0.00322191]
[1733658599104,0.405878,99758.0,99757.0,0.00322191]
[1733658600009,0.439078,99758.0,99757.0,8.878e-05]
[1733658600204,0.439078,99758.0,99739.0,0.3708]
[1733658600205,0.2807,99757.0,99739.0,0.01]
[1733658600408,0.61926096,99758.0,99730.0,0.01]
[1733658600409,0.04509,99732.0,99730.0,0.01]
[1733658600610,0.04509,99732.0,99724.0,0.24139874]
[1733658600611,0.04509,99732.0,99731.0,0.01128091]
[1733658602007,0.04609,99732.0,99731.0,0.01528091]
[1733658602207,0.04609,99732.0,99731.0,0.01828091]
[1733658603617,0.04609,99732.0,99731.0,0.01201374]
[1733658604002,0.04609,99732.0,99731.0,0.007]
[1733658604909,0.04609,99732.0,99731.0,0.01201398]
[1733658605412,0.04609,99732.0,99731.0,0.007]
[1733658606513,0.04609,99732.0,99731.0,0.01201398]
[1733658607618,0.40689,99732.0,99731.0,0.01201398]
[1733658607915,0.40689,99732.0,99731.0,0.01201423]
[1733658608105,0.40689,99732.0,99731.0,0.007]
[1733658609420,0.40700803,99732.0,99731.0,0.007]
[1733658610208,0.40700803,99732.0,99731.0,0.0120142]
[1733658610412,0.40700803,99732.0,99731.0,0.0090142]
[1733658610617,0.40800803,99732.0,99731.0,0.0050142]
[1733658610815,0.36291803,99732.0,99729.0,0.0953]
[1733658611020,0.04509,99731.0,99730.0,0.00501422]
[1733658612013,0.36379804,99732.0,99728.0,0.00011024]
[1733658612215,0.045091,99730.0,99729.0,0.00501412]
[1733658612508,0.045091,99730.0,99729.0,0.00814794]
[1733658616721,0.36091803,99732.0,99729.0,0.00814794]
[1733658616722,0.00011803,99732.0,99729.0,0.0144157]
[1733658617030,0.04509,99731.0,99730.0,0.01441451]
[1733658617621,0.04509,99731.0,99730.0,0.19231325]
[1733658617824,0.04509,99731.0,99730.0,0.01441451]
[1733658618219,0.04509,99731.0,99730.0,0.19231325]
[1733658618925,0.04509,99731.0,99730.0,0.19231318]
[1733658619324,0.04509,99731.0,99730.0,0.01441444]
[1733658620222,0.04509,99731.0,99730.0,0.19231318]
[1733658620421,0.04509,99731.0,99730.0,0.01441444]
[1733658620825,0.04509,99731.0,99730.0,0.05950544]
[1733658622329,0.04509,99731.0,99730.0,0.0595046]
[1733658624427,0.00011803,99732.0,99731.0,0.04509]
[1733658624637,0.00011803,99732.0,99731.0,0.10493697]
[1733658625641,0.00111803,99732.0,99731.0,0.10493697]
[1733658626430,0.00211803,99732.0,99731.0,0.34195817]
[1733658626826,0.00211803,99732.0,99731.0,0.10493697]
[1733658627226,0.00211803,99732.0,99731.0,0.34195817]
[1733658627428,0.00211803,99732.0,99731.0,0.44826038]
[1733658627626,0.00211803,99732.0,99731.0,0.74826038]
[1733658627925,0.045082,99748.0,99747.0,0.045083]
[1733658628126,0.045082,99748.0,99747.0,0.4202966]
[1733658629031,0.04515146,99754.0,99753.0,0.04508]
[1733658629233,0.04515146,99754.0,99753.0,0.05322533]
[1733658629929,0.04515146,99754.0,99753.0,0.05949096]
[1733658630128,0.04515146,99754.0,99753.0,0.01441096]
[1733658630330,0.04515146,99754.0,99753.0,0.19247896]
[1733658630732,0.05415146,99754.0,99753.0,0.01441096]
[1733658631336,0.05915146,99754.0,99753.0,0.01441096]
[1733658632137,0.05915146,99754.0,99752.0,0.04508]
[1733658632138,0.01407146,99754.0,99752.0,0.04508]
[1733658632334,0.05915046,99754.0,99753.0,0.01441097]
[1733658633238,0.05415046,99754.0,99753.0,0.19237268]
[1733658633435,0.05015046,99754.0,99753.0,0.19237268]
[1733658633636,0.05915046,99754.0,99753.0,0.19237268]
[1733658634028,0.04515046,99754.0,99753.0,0.19237268]
[1733658634238,0.05915046,99754.0,99753.0,0.19237268]
[1733658635246,0.05915046,99754.0,99753.0,0.01441097]
[1733658635535,0.01407146,99754.0,99752.0,0.04508]
[1733658635740,0.05915046,99754.0,99753.0,0.01441099]
[1733658636140,0.05915046,99754.0,99753.0,0.00814534]
[1733658637036,0.05415046,99754.0,99753.0,0.00814534]
[1733658637237,0.05915046,99754.0,99753.0,0.00814534]
[1733658638932,0.05415046,99754.0,99753.0,0.00814534]
[1733658639142,0.05915046,99754.0,99753.0,0.01441096]
[1733658640033,0.05915046,99754.0,99753.0,0.00814534]
[1733658642240,0.05915046,99754.0,99753.0,0.01441103]
[1733658642635,0.05915046,99754.0,99753.0,0.05949103]
[1733658643934,0.05915046,99754.0,99753.0,0.01441103]
[1733658645144,0.05915046,99754.0,99753.0,0.18610705]
[1733658645338,0.05915046,99754.0,99753.0,0.00814534]
[1733658645642,0.01407146,99754.0,99753.0,0.04508]
[1733658645840,0.055069,99777.0,99753.0,1.02842495]
[1733658646035,0.045069,99777.0,99776.0,0.045069]
[1733658646234,0.045069,99777.0,99776.0,0.59193024]
[1733658646441,0.045069,99777.0,99776.0,0.42027822]
[1733658646949,0.000117,99780.0,99776.0,0.37520922]
[1733658647241,0.000117,99780.0,99779.0,0.22289511]
[1733658647438,0.000117,99780.0,99779.0,0.05321334]
[1733658648740,0.045184,99780.0,99779.0,0.05321334]
[1733658649140,0.052184,99780.0,99779.0,0.05321094]
[1733658649936,0.053184,99780.0,99779.0,0.05421094]
[1733658650450,0.053184,99780.0,99779.0,0.05521094]
[1733658651437,0.053184,99780.0,99779.0,0.01014294]
[1733658651739,0.053184,99780.0,99779.0,0.0051319]
[1733658652449,0.053184,99780.0,99775.0,0.3109]
[1733658652450,0.045069,99776.0,99775.0,0.3109]
[1733658652645,0.13491133,99776.0,99775.0,0.31591147]
[1733658652942,0.045069,99776.0,99775.0,0.31591147]
[1733658653142,0.13491184,99776.0,99775.0,0.31591147]
[1733658653348,0.045069,99776.0,99775.0,0.31591147]
[1733658653545,0.052069,99776.0,99775.0,0.31691147]
[1733658654052,0.061069,99776.0,99775.0,0.3129]
[1733658654243,0.061069,99776.0,99775.0,0.31791161]
[1733658657243,0.18112182,99776.0,99775.0,0.00701161]
[1733658657439,0.061069,99776.0,99775.0,0.002]
[1733658659342,0.421869,99776.0,99775.0,0.002]
[1733658660544,0.061069,99776.0,99775.0,0.002]
[1733658664255,0.061069,99776.0,99775.0,0.00513233]
[1733658666653,0.061069,99776.0,99775.0,0.002]
[1733658669150,0.061069,99776.0,99775.0,0.01014398]
[1733658669345,0.51177758,99776.0,99775.0,0.01014398]
[1733658669546,0.421869,99776.0,99775.0,0.01014398]
[1733658670241,0.061069,99776.0,99775.0,0.01014398]
[1733658670443,0.15104907,99776.0,99775.0,0.01014398]
[1733658670654,0.15104907,99776.0,99775.0,0.01014413]
[1733658670949,0.061069,99776.0,99775.0,0.01014413]
[1733658671151,0.061069,99776.0,99775.0,0.0051323]
[1733658671341,0.061069,99776.0,99775.0,0.0101442]
[1733658671846,0.421869,99776.0,99775.0,0.0101442]
[1733658672144,0.421869,99776.0,99775.0,0.01014434]
[1733658672145,0.54174711,99776.0,99775.0,0.01014434]
[1733658672340,0.54174711,99776.0,99775.0,0.002]
[1733658672555,0.54174711,99776.0,99775.0,0.00513252]
[1733658673153,0.421869,99776.0,99775.0,0.01014457]
[1733658673657,0.47059085,99776.0,99775.0,0.01014457]
[1733658676058,0.47059085,99776.0,99775.0,0.01014458]
[1733658678665,0.47059086,99776.0,99775.0,0.01014458]
[1733658679154,0.57652403,99776.0,99775.0,0.00513253]
[1733658680758,0.47059086,99776.0,99775.0,0.00513253]
[1733658680952,0.10979086,99776.0,99775.0,0.00513253]
[1733658681158,0.47059086,99776.0,99775.0,0.01014463]
[1733658682061,0.47059086,99776.0,99775.0,0.002]
[1733658682062,0.65079502,99776.0,99775.0,0.002]
[1733658682257,0.47059086,99776.0,99775.0,0.002]
[1733658682463,0.65079502,99776.0,99775.0,0.002]
[1733658682848,0.47059086,99776.0,99775.0,0.002]
[1733658683761,0.65079502,99776.0,99775.0,0.002]
[1733658684152,0.47059086,99776.0,99775.0,0.002]
[1733658684667,0.10979086,99776.0,99775.0,0.002]
[1733658684865,0.60207316,99776.0,99775.0,0.002]
[1733658685050,0.65079502,99776.0,99775.0,0.002]
[1733658686962,0.47059086,99776.0,99775.0,0.002]
[1733658687164,0.47059086,99776.0,99759.0,0.17782399]
[1733658687362,0.04508,99751.0,99750.0,0.17782399]
[1733658687659,0.04508,99751.0,99750.0,0.00814596]
[1733658688365,0.13516531,99751.0,99750.0,0.00814596]
[1733658688666,0.04508,99751.0,99750.0,0.00814596]
[1733658689457,0.04908,99751.0,99750.0,0.00814596]
[1733658690062,0.05108,99751.0,99750.0,0.00814596]
[1733658691258,0.17112999,99751.0,99750.0,0.00814596]
[1733658691859,0.17113031,99751.0,99750.0,0.00814596]
[1733658692266,0.17112041,99751.0,99750.0,0.00814596]
[1733658694362,0.05108,99751.0,99750.0,0.00814596]
[1733658698364,0.05108,99751.0,99750.0,0.00313306]
[1733658699959,0.06100036,99751.0,99750.0,0.00313306]
[1733658700156,0.06100036,99751.0,99735.0,0.17782399]
[1733658700362,0.06100036,99751.0,99729.0,0.032]
[1733658700363,0.3608,99745.0,99736.0,0.18597103]
[1733658700567,0.3608,99745.0,99735.0,0.17782399]
[1733658700568,0.045084,99744.0,99735.0,0.17782399]
[1733658700767,0.076384,99744.0,99736.0,0.00814697]
[1733658700966,0.16639437,99744.0,99737.0,0.00814697]
[1733658701167,0.16639437,99744.0,99732.0,0.17782399]
[1733658701168,0.076384,99744.0,99732.0,0.17782399]
[1733658701468,0.045088,99733.0,99732.0,0.17782399]
[1733658701764,0.045088,99733.0,99732.0,0.00814697]
[1733658702169,0.045088,99733.0,99732.0,0.00814713]
[1733658702360,0.045088,99733.0,99732.0,0.00313345]
[1733658703162,0.045088,99733.0,99732.0,0.00413345]
[1733658703665,0.045088,99733.0,99732.0,0.00813345]
[1733658704068,0.045088,99733.0,99732.0,0.00713345]
[1733658704258,0.045088,99733.0,99732.0,0.00313345]
[1733658704464,0.04509,99729.0,99728.0,0.00011024]
[1733658704669,0.40589,99729.0,99728.0,0.00324402]
[1733658705268,0.40589,99729.0,99728.0,0.00825809]
[1733658705969,0.40589,99729.0,99728.0,0.00925809]
[1733658707177,0.40589,99729.0,99728.0,0.00424402]
[1733658717273,0.04509,99729.0,99728.0,0.00424402]
[1733658719977,0.3298595,99789.0,99728.0,0.01410384]
[1733658719978,0.12001383,99742.0,99728.0,0.01410384]
[1733658720180,0.045088,99733.0,99729.0,0.0081478]
[1733658720474,0.045088,99733.0,99730.0,0.0081478]
[1733658720682,0.045088,99733.0,99731.0,0.0081478]
[1733658720874,0.045088,99733.0,99732.0,0.0081478]
[1733658723982,0.0313,99744.0,99732.0,0.18597179]
[1733658724288,0.0313,99744.0,99736.0,0.3608]
[1733658724475,0.045086,99738.0,99737.0,0.0081478]
[1733658725783,0.045086,99738.0,99737.0,0.18597179]
[1733658725988,0.045084,99745.0,99737.0,0.0081478]
[1733658726182,0.045081,99751.0,99747.0,0.045082]
[1733658726383,0.045081,99751.0,99749.0,0.405881]
[1733658726586,0.045081,99751.0,99750.0,0.1863897]
[1733658726780,0.045081,99751.0,99750.0,0.0081478]
[1733658727180,0.045081,99751.0,99750.0,0.24545044]
[1733658727388,0.045081,99751.0,99750.0,0.0081478]
[1733658727585,0.12199002,99764.0,99754.0,0.045079]
[1733658727793,0.12199002,99764.0,99755.0,0.0081478]
[1733658727983,0.045078,99757.0,99756.0,0.0081478]
[1733658729085,0.04508,99752.0,99751.0,0.17814105]
[1733658729394,0.04508,99752.0,99751.0,0.0081451]
[1733658729797,0.04508,99752.0,99749.0,0.045081]
[1733658730100,0.008,99752.0,99751.0,0.001]
[1733658730308,0.05308,99752.0,99751.0,0.001]
[1733658730503,0.05308,99752.0,99751.0,0.00914546]
[1733658730898,0.05708,99752.0,99751.0,0.00413287]
[1733658731394,0.05708,99752.0,99751.0,0.00914595]
[1733658731596,0.05708,99752.0,99751.0,0.00413287]
[1733658732205,0.05708,99752.0,99751.0,0.00914598]
[1733658732401,0.05708,99752.0,99751.0,0.00914597]
[1733658732803,0.05708,99752.0,99751.0,0.00914596]
[1733658733105,0.14699077,99752.0,99751.0,0.00914596]
[1733658733308,0.14699077,99752.0,99751.0,0.00413287]
[1733658733605,0.14699077,99752.0,99751.0,0.00914624]
[1733658733811,0.14699077,99752.0,99751.0,0.00413317]
[1733658734102,0.05708,99752.0,99751.0,0.00413317]
[1733658734304,0.14699077,99752.0,99751.0,0.00413317]
[1733658734994,0.05708,99752.0,99751.0,0.00413317]
[1733658735903,0.14699077,99752.0,99751.0,0.001]
[1733658736095,0.05708,99752.0,99751.0,0.001]
[1733658739007,0.17698338,99752.0,99751.0,0.001]
[1733658740215,0.05708,99752.0,99751.0,0.001]
[1733658741198,0.10581579,99752.0,99751.0,0.001]
[1733658741506,0.05708,99752.0,99751.0,0.001]
[1733658741908,0.25574176,99752.0,99751.0,0.001]
[1733658742207,0.20700532,99752.0,99751.0,0.001]
[1733658742413,0.20701727,99752.0,99751.0,0.00413339]
[1733658744414,0.05708,99752.0,99751.0,0.00413339]
[1733658744612,0.20705162,99752.0,99751.0,0.00413339]
[1733658745210,0.05708,99752.0,99751.0,0.00413339]
[1733658746420,0.10581443,99752.0,99751.0,0.00413339]
[1733658746715,0.012,99752.0,99751.0,0.00413339]
[1733658746907,0.13200493,99752.0,99751.0,0.00914655]
[1733658747102,0.012,99752.0,99751.0,0.00914655]
[1733658747512,0.05708,99752.0,99751.0,0.00914655]
[1733658753719,0.05708,99752.0,99751.0,0.23227893]
[1733658753916,0.05708,99752.0,99751.0,0.05422755]
[1733658754611,0.05708,99752.0,99751.0,0.046081]
[1733658754813,0.05708,99752.0,99751.0,0.05422659]
[1733658758318,0.05708,99752.0,99751.0,0.0542262]
[1733658761217,0.05708,99752.0,99751.0,0.29152884]
[1733658761429,0.05708,99752.0,99751.0,0.0542262]
[1733658761817,0.012,99752.0,99751.0,0.05422606]
[1733658762126,0.012,99752.0,99751.0,0.2915287]
[1733658762323,0.012,99752.0,99751.0,0.05422606]
[1733658762529,0.012,99752.0,99751.0,0.29184564]
[1733658762827,0.012,99752.0,99751.0,0.05422606]
[1733658762828,0.10201162,99752.0,99751.0,0.05422606]
[1733658763513,0.012,99752.0,99751.0,0.05422606]
[1733658764222,0.012,99752.0,99751.0,0.41502606]
[1733658765232,0.012,99752.0,99751.0,0.41502605]
[1733658769617,0.012,99752.0,99751.0,0.05422605]
[1733658769831,0.012,99752.0,99751.0,0.41502605]
[1733658770030,0.012,99752.0,99751.0,0.05422605]
[1733658770225,0.012,99752.0,99751.0,0.41502605]
[1733658770727,0.05708,99752.0,99751.0,0.41502605]
[1733658770925,0.04508,99752.0,99751.0,0.41502605]
[1733658771131,0.045079,99756.0,99755.0,0.045077]
[1733658771325,0.045079,99756.0,99755.0,0.05322205]
[1733658772327,0.054079,99756.0,99755.0,0.05422205]
[1733658772520,0.059079,99756.0,99755.0,0.05422205]
[1733658775928,0.014,99756.0,99755.0,0.05422205]
[1733658776131,0.014,99756.0,99755.0,0.046077]
[1733658776337,0.014,99756.0,99755.0,0.05422208]
[1733658777121,0.014,99756.0,99755.0,0.06423435]
[1733658779630,0.014,99756.0,99755.0,0.05922196]
[1733658779936,0.014,99756.0,99755.0,0.06454591]
[1733658782328,0.014,99756.0,99755.0,0.06423426]
[1733658786135,0.10419325,99756.0,99755.0,0.36086256]
[1733658786441,0.014,99756.0,99755.0,0.69412721]
[1733658786839,0.014,99756.0,99755.0,0.69412413]
[1733658787227,0.014,99756.0,99755.0,0.39749583]
[1733658787432,0.09019325,99771.0,99755.0,0.76126222]
[1733658787625,0.16532767,99775.0,99771.0,0.045071]
[1733658787626,0.09019325,99774.0,99771.0,0.045071]
[1733658787835,0.13526325,99775.0,99771.0,0.38385586]
[1733658788039,0.09019325,99773.0,99771.0,0.05321599]
[1733658788431,0.04507,99775.0,99771.0,0.05321599]
[1733658788432,0.13526325,99775.0,99771.0,0.05321599]
[1733658789032,0.0409,99772.0,99771.0,0.05421599]
[1733658789442,0.0409,99772.0,99771.0,0.29190037]
[1733658789637,0.008,99772.0,99771.0,0.29190037]
[1733658790434,0.008,99772.0,99771.0,0.046071]
[1733658790942,0.008,99772.0,99771.0,0.05421448]
[1733658791238,0.008,99772.0,99771.0,0.29189886]
[1733658791541,0.008,99772.0,99771.0,0.06405042]
[1733658792434,0.008,99772.0,99771.0,0.07657819]
[1733658794243,0.008,99772.0,99771.0,0.25467196]
[1733658794444,0.008,99772.0,99771.0,0.07657819]
[1733658800735,0.008,99772.0,99771.0,0.07688875]
[1733658801647,0.008,99772.0,99771.0,0.07657819]
[1733658803036,0.008,99772.0,99771.0,0.43737819]
[1733658804945,0.008,99772.0,99771.0,0.43737755]
[1733658805139,0.045068,99779.0,99771.0,0.43637755]
[1733658805343,0.045068,99779.0,99778.0,0.045068]
[1733658805542,0.045068,99779.0,99778.0,0.05321084]
[1733658806643,0.000117,99780.0,99779.0,0.045068]
[1733658806842,0.000117,99780.0,99779.0,0.41401084]
[1733658810545,0.000117,99780.0,99779.0,0.41401079]
[1733658811342,0.000117,99780.0,99779.0,0.42684249]
[1733658812140,0.000117,99780.0,99779.0,0.42684218]
[1733658813648,0.000117,99780.0,99779.0,0.42653149]
[1733658815753,0.000117,99780.0,99779.0,0.66398985]
[1733658815958,0.000117,99780.0,99779.0,0.42653149]
[1733658816147,0.076863,99790.0,99779.0,0.7239509]
[1733658816346,0.076863,99790.0,99789.0,0.045063]
[1733658816651,0.076863,99790.0,99789.0,0.0532055]
[1733658817042,0.0318,99790.0,99789.0,0.0532055]
[1733658817649,0.0318,99790.0,99789.0,0.05331059]
[1733658817951,0.0318,99790.0,99789.0,0.38655848]
[1733658818146,0.0318,99790.0,99789.0,0.39908442]
[1733658818447,0.00011216,99791.0,99790.0,0.045063]
[1733658818651,0.00011216,99791.0,99790.0,0.39897933]
[1733658819037,0.00011216,99791.0,99790.0,0.36259229]
[1733658819243,0.00011216,99791.0,99790.0,0.39954481]
[1733658820450,0.00011216,99791.0,99790.0,0.76065615]
[1733658820952,0.00011216,99791.0,99790.0,0.75969836]
[1733658821853,0.00011216,99791.0,99790.0,0.76038702]
[1733658822254,0.00011216,99791.0,99790.0,0.39958702]
[1733658822749,0.00011216,99791.0,99790.0,0.76038697]
[1733658823144,0.00011216,99791.0,99790.0,0.77253756]
[1733658823349,0.00011216,99791.0,99790.0,0.77284873]
[1733658823750,0.00011216,99791.0,99790.0,0.41204873]
[1733658823954,0.00011216,99791.0,99790.0,0.77284873]
[1733658824151,0.00011216,99791.0,99790.0,0.77253756]
[1733658824348,0.00011216,99791.0,99790.0,1.06913744]
[1733658824545,0.00011216,99791.0,99790.0,0.77253756]
[1733658825156,0.00011216,99791.0,99790.0,0.77252437]
[1733658825351,0.00011216,99791.0,99790.0,1.06909686]
[1733658826354,0.045059,99799.0,99790.0,1.06909691]
[1733658826549,0.045059,99799.0,99798.0,0.405859]
[1733658826749,0.045059,99799.0,99798.0,0.41400026]
[1733658828749,0.045059,99799.0,99798.0,0.05320026]
[1733658828946,0.045059,99799.0,99798.0,0.41400026]
[1733658829358,0.045059,99798.0,99797.0,0.17791515]
[1733658829556,0.045059,99798.0,99793.0,0.17791515]
[1733658829759,0.03279441,99800.0,99793.0,0.17791515]
[1733658830062,0.045061,99795.0,99794.0,0.17791515]
[1733658830262,0.03279441,99800.0,99789.0,0.23732529]
[1733658830556,0.045062,99795.0,99794.0,0.045061]
[1733658831351,0.16501616,99795.0,99794.0,0.045061]
[1733658831754,0.045062,99795.0,99794.0,0.045061]
[1733658833469,0.16503558,99795.0,99794.0,0.045061]
[1733658833863,0.11997358,99795.0,99794.0,0.045061]
[1733658834061,0.1527622,99800.0,99799.0,0.045059]
[1733658834370,0.03279441,99800.0,99799.0,0.045059]
[1733658834871,0.15276717,99800.0,99799.0,0.045059]
[1733658835074,0.03279441,99800.0,99799.0,0.045059]
[1733658835267,0.15276717,99800.0,99799.0,0.045059]
[1733658836680,0.07785241,99800.0,99799.0,0.045059]
[1733658837674,0.19782517,99800.0,99799.0,0.045059]
[1733658838173,0.07785241,99800.0,99799.0,0.045059]
[1733658838374,0.07785241,99800.0,99799.0,0.22299591]
[1733658838579,0.07785241,99800.0,99799.0,0.045059]
[1733658838784,0.07785241,99800.0,99799.0,0.22305271]
[1733658839285,0.07785241,99800.0,99799.0,0.045059]
[1733658839578,0.07785241,99800.0,99799.0,0.05006918]
[1733658840280,0.07785241,99800.0,99799.0,0.22810265]
[1733658840481,0.07785241,99800.0,99799.0,0.22309247]
[1733658840679,0.07785241,99800.0,99799.0,0.05006933]
[1733658840880,0.07785241,99800.0,99799.0,0.22810809]
[1733658841388,0.07785241,99800.0,99799.0,0.05006933]
[1733658841582,0.07785241,99800.0,99799.0,0.00814178]
[1733658841978,0.07785241,99800.0,99799.0,0.18619525]
[1733658842385,0.07785241,99800.0,99799.0,0.00814178]
[1733658842586,0.07785241,99800.0,99799.0,0.18621658]
[1733658843079,0.07785241,99800.0,99799.0,0.00814178]
[1733658843688,0.1678499,99800.0,99799.0,0.18623753]
[1733658844192,0.045061,99794.0,99793.0,0.17810033]
[1733658844386,0.045061,99794.0,99793.0,0.18626004]
[1733658844893,0.045061,99794.0,99793.0,0.00814214]
[1733658846293,0.13513637,99794.0,99793.0,0.00814214]
[1733658848880,0.045061,99794.0,99793.0,0.00814214]
[1733658849388,0.13513637,99794.0,99793.0,0.00814214]
[1733658849893,0.13513637,99794.0,99793.0,0.18629504]
[1733658850087,0.13513637,99794.0,99793.0,0.00814214]
[1733658850292,0.045061,99794.0,99793.0,0.00814214]
[1733658850988,0.045061,99794.0,99793.0,0.18629504]
[1733658851192,0.045061,99794.0,99793.0,0.00814214]
[1733658851389,0.045061,99794.0,99793.0,0.18629504]
[1733658852895,0.045061,99794.0,99793.0,0.18629533]
[1733658853400,0.045061,99794.0,99793.0,0.00814243]
[1733658853401,0.16503376,99794.0,99793.0,0.00814243]